bitfinex/quotes_ETHUSD_20260130
["timestamp","ask_amount","ask_price","bid_price","bid_amount"]
[1769763521222,8.39596537,2739.7,2738.5,8.16796275]
[1769763522692,0.1024,2739.7,2738.5,8.16796275]
[1769763522893,0.1024,2739.7,2738.7,8.16596275]
[1769763523606,0.001,2739.5,2738.7,8.16596275]
[1769763527512,8.29456537,2739.5,2738.7,8.16596275]
[1769763529110,0.001,2739.5,2738.7,8.16596275]
[1769763530006,0.001,2739.5,2738.5,0.002]
[1769763530007,8.29456537,2739.5,2738.5,0.002]
[1769763530209,0.82945654,2739.4,2738.5,8.16796275]
[1769763530415,8.29356537,2739.4,2738.5,8.16796275]
[1769763536090,8.29356537,2739.4,2738.7,0.002]
[1769763536506,0.001,2739.2,2738.7,0.002]
[1769763538932,8.29456537,2739.2,2738.7,0.002]
[1769763539096,9.06056537,2739.2,2738.7,0.002]
[1769763539297,0.90605654,2739.1,2738.7,0.002]
[1769763540228,9.19962191,2739.1,2738.7,0.002]
[1769763540538,8.29356537,2738.9,2738.3,0.002]
[1769763542218,0.90605654,2739.1,2738.3,0.002]
[1769763542219,0.766,2738.8,2738.3,8.16796275]
[1769763542632,9.19962191,2739.1,2738.3,8.16796275]
[1769763542802,1.68606219,2739.0,2738.3,8.16796275]
[1769763545330,0.766,2738.9,2738.3,8.16796275]
[1769763548936,0.001,2739.2,2738.5,8.83208627]
[1769763555217,0.001,2739.5,2738.6,8.83008627]
[1769763555437,0.001,2739.5,2738.8,8.83008627]
[1769763556425,0.001,2739.5,2738.8,8.82803639]
[1769763556855,0.001,2739.5,2738.5,0.002]
[1769763556856,8.60422959,2739.5,2738.5,0.002]
[1769763557415,8.60422959,2739.5,2738.5,8.83208627]
[1769763559549,9.36922959,2739.4,2738.5,8.83208627]
[1769763559738,0.93702296,2739.3,2738.5,8.83208627]
[1769763560316,0.93802296,2739.3,2738.5,8.83208627]
[1769763565723,1.70402296,2739.3,2738.5,8.83208627]
[1769763569026,0.767,2739.3,2738.5,8.83208627]
[1769763570565,0.001,2739.3,2738.5,8.83208627]
[1769763572045,0.001,2739.3,2738.8,8.83008627]
[1769763572453,0.001,2739.1,2738.8,8.83008627]
[1769763576365,0.001,2739.5,2738.9,8.47352529]
[1769763576564,0.001,2739.5,2738.7,0.002]
[1769763576565,0.001,2739.5,2739.1,8.47352529]
[1769763578541,0.1024,2740.1,2739.1,8.47352529]
[1769763581789,8.66541054,2739.9,2738.9,0.766]
[1769763582072,8.66541054,2739.9,2738.9,9.23952529]
[1769763583387,8.66541054,2739.9,2739.0,0.92395253]
[1769763583559,8.66541054,2739.9,2739.1,8.47352529]
[1769763584087,8.66541054,2739.9,2738.9,8.47352529]
[1769763584475,0.1024,2740.0,2739.1,8.47352529]
[1769763584665,0.8684,2740.0,2739.1,8.47352529]
[1769763584874,0.001,2739.7,2739.1,9.32107782]
[1769763589876,0.001,2739.7,2739.1,0.84755253]
[1769763590080,0.001,2739.7,2739.0,0.002]
[1769763590279,0.001,2739.7,2739.0,8.47552529]
[1769763590687,8.66641054,2739.7,2739.0,0.002]
[1769763595166,0.001,2739.7,2739.0,8.47552529]
[1769763596094,9.14393915,2740.6,2739.1,8.47352529]
[1769763596300,0.1024,2740.5,2739.3,8.47352529]
[1769763596465,8.76781054,2740.5,2739.3,8.47352529]
[1769763597561,0.001,2739.5,2739.3,8.47352529]
[1769763600406,0.91218642,2740.7,2739.3,8.47352529]
[1769763600407,8.66541054,2740.8,2739.3,8.47352529]
[1769763600591,8.66541054,2741.0,2739.5,8.47352529]
[1769763602764,0.1024,2741.1,2739.5,8.47352529]
[1769763602969,0.8674,2741.1,2739.5,8.47352529]
[1769763603171,10.48609159,2741.1,2739.7,8.47352529]
[1769763603369,9.72109159,2741.1,2739.7,8.47352529]
[1769763603607,10.48609159,2741.1,2739.7,8.47352529]
[1769763603808,8.66541054,2740.9,2739.7,8.47352529]
[1769763604172,9.14393915,2740.9,2739.7,8.47352529]
[1769763604479,8.66541054,2740.6,2739.8,8.47352529]
[1769763605505,9.57980446,2740.8,2739.8,8.47352529]
[1769763605719,1.67939392,2740.8,2739.8,8.47352529]
[1769763606408,0.91439392,2740.8,2739.8,8.47352529]
[1769763608380,8.92834458,2741.2,2739.8,8.47352529]
[1769763608710,9.03074458,2741.2,2739.8,8.47352529]
[1769763608910,0.1024,2741.2,2739.8,9.23852529]
[1769763609136,0.1024,2741.2,2740.0,9.04016693]
[1769763610089,8.92834458,2741.2,2740.0,9.04016693]
[1769763610776,9.79574458,2741.4,2740.0,9.04016693]
[1769763612215,9.03074458,2741.4,2740.0,9.04016693]
[1769763612522,0.1024,2741.2,2740.2,9.04016693]
[1769763613928,8.92834458,2741.1,2740.0,9.04016693]
[1769763614231,8.92834458,2740.9,2739.6,9.04016693]
[1769763614728,8.92834458,2740.7,2739.3,9.04016693]
[1769763614950,8.92834458,2740.3,2739.3,9.04016693]
[1769763618223,8.92834458,2740.3,2739.0,0.002]
[1769763618224,8.92834458,2740.3,2739.0,9.04216693]
[1769763618436,8.92834458,2740.3,2739.0,0.002]
[1769763618437,8.92834458,2739.9,2739.0,0.002]
[1769763619025,0.765,2740.1,2739.0,9.04216693]
[1769763619198,0.98404872,2740.6,2739.2,9.04016693]
[1769763619199,2.1024,2740.4,2739.2,9.04016693]
[1769763619407,0.765,2740.3,2739.2,9.04016693]
[1769763620706,0.765,2740.3,2739.5,0.002]
[1769763621250,9.03174458,2740.4,2739.5,0.002]
[1769763621429,0.765,2740.3,2739.5,9.04216693]
[1769763621641,0.97967446,2740.2,2739.5,9.04216693]
[1769763624702,0.001,2740.4,2739.5,9.04216693]
[1769763625013,0.97957446,2741.3,2739.8,9.04016693]
[1769763625337,0.765,2741.2,2739.8,9.04016693]
[1769763625741,2.0,2741.1,2739.8,9.04016693]
[1769763626310,1.99516447,2741.1,2739.7,9.04016693]
[1769763626812,0.765,2741.2,2739.7,9.04016693]
[1769763626813,2.0,2741.0,2739.7,9.04016693]
[1769763627122,8.92834458,2740.9,2739.7,9.04016693]
[1769763627431,9.82117904,2740.8,2739.7,9.04016693]
[1769763628136,0.89283446,2740.8,2739.7,9.04016693]
[1769763628435,0.1024,2741.1,2739.7,9.04016693]
[1769763628436,0.1024,2740.9,2739.7,9.04016693]
[1769763628807,0.1024,2741.0,2739.7,9.04016693]
[1769763629340,0.1024,2741.0,2739.9,9.04016693]
[1769763630043,0.1024,2741.2,2739.9,9.04016693]
[1769763630218,0.8674,2741.2,2739.9,9.04016693]
[1769763630951,9.79574458,2741.2,2739.9,9.04016693]
[1769763631331,8.92834458,2741.4,2740.1,9.04016693]
[1769763631537,0.8674,2741.3,2740.1,9.04016693]
[1769763632110,0.1024,2741.3,2740.1,9.04016693]
[1769763633725,0.001,2741.1,2740.1,9.04016693]
[1769763634032,0.001,2741.1,2740.3,9.04016693]
[1769763635536,4.06973504,2742.5,2740.2,0.90401669]
[1769763635537,0.1024,2741.7,2740.4,9.04016693]
[1769763637456,8.92834458,2741.8,2740.4,9.04016693]
[1769763637457,9.35781272,2743.5,2741.7,9.46423797]
[1769763637615,10.29359399,2743.4,2741.9,9.46423797]
[1769763638233,10.29359399,2743.4,2741.3,9.46423797]
[1769763638234,9.35781272,2743.0,2741.3,9.46423797]
[1769763638847,10.12281272,2743.0,2741.3,9.46423797]
[1769763639341,9.46021272,2742.9,2741.3,9.46423797]
[1769763639550,1.02252127,2742.8,2741.5,9.46423797]
[1769763640257,9.35781272,2742.3,2741.2,9.46423797]
[1769763640463,9.35781272,2742.3,2741.1,3.00989196]
[1769763640619,9.35781272,2742.3,2741.2,9.46423797]
[1769763640823,0.93578127,2742.2,2741.2,9.46423797]
[1769763641516,1.69895704,2742.2,2741.2,9.46423797]
[1769763642268,11.05676976,2742.2,2741.1,3.00989196]
[1769763643865,9.35781272,2742.0,2741.1,3.00989196]
[1769763644158,11.05676976,2742.2,2741.2,9.46423797]
[1769763644381,1.10567698,2742.1,2741.2,9.46423797]
[1769763644580,0.765,2742.2,2741.2,12.46630173]
[1769763644762,0.1024,2742.4,2741.2,12.46630173]
[1769763644961,9.35781272,2742.8,2741.3,9.46423797]
[1769763645161,0.8674,2742.7,2741.3,9.46423797]
[1769763645369,10.22521272,2742.7,2741.3,9.46423797]
[1769763645569,10.22521272,2742.7,2741.2,3.00206376]
[1769763645570,1.02252127,2742.6,2741.4,10.71086814]
[1769763646158,10.22521272,2743.0,2741.4,10.71086814]
[1769763646485,0.1024,2742.8,2741.4,10.71086814]
[1769763648287,9.46021272,2742.6,2741.4,10.71086814]
[1769763648456,9.46021272,2742.6,2741.4,9.46423797]
[1769763648791,0.1024,2742.6,2741.4,9.46423797]
[1769763649006,0.8674,2742.6,2741.4,9.46423797]
[1769763649285,0.1024,2742.6,2741.4,9.46423797]
[1769763649502,0.1024,2743.1,2741.4,9.46423797]
[1769763649810,0.94602127,2743.0,2741.6,9.46423797]
[1769763651659,0.1024,2743.1,2741.6,9.46423797]
[1769763652995,0.1024,2743.2,2741.6,9.46423797]
[1769763653493,0.1024,2743.7,2741.8,9.46423797]
[1769763653693,0.8674,2743.7,2741.8,9.46423797]
[1769763653989,1.02252127,2743.6,2742.0,9.46423797]
[1769763654618,0.1024,2743.6,2742.0,9.46423797]
[1769763655584,0.1024,2743.9,2742.0,9.46423797]
[1769763655926,10.12281272,2744.1,2742.0,9.46423797]
[1769763656097,2.0,2744.0,2742.0,9.46423797]
[1769763656298,10.12281272,2744.1,2742.0,9.46423797]
[1769763656498,1.01228127,2744.0,2742.2,9.46423797]
[1769763656818,1.01228127,2744.0,2741.9,1.0229238]
[1769763656819,11.46021272,2743.9,2741.9,1.0229238]
[1769763657126,11.46021272,2743.5,2741.5,9.46423797]
[1769763657435,0.44251277,2743.9,2741.5,9.46423797]
[1769763657436,9.35781272,2743.6,2741.5,9.46423797]
[1769763657620,0.1024,2743.3,2741.5,10.22923797]
[1769763658422,9.35781272,2743.0,2741.5,9.46423797]
[1769763658628,1.13578127,2742.9,2741.8,0.002]
[1769763658926,11.35781272,2742.7,2741.8,0.002]
[1769763659122,9.35781272,2742.7,2741.8,0.002]
[1769763659506,0.765,2742.6,2741.8,0.002]
[1769763661030,11.35781272,2742.4,2741.2,3.00206376]
[1769763661229,2.0,2742.3,2741.2,3.00206376]
[1769763662698,0.1024,2742.2,2741.2,3.00206376]
[1769763663513,0.1024,2742.2,2741.2,12.46630173]
[1769763664832,0.8674,2742.4,2741.3,9.46423797]
[1769763665132,1.9044094,2742.4,2741.3,10.71086814]
[1769763665332,1.1394094,2742.4,2741.3,10.71086814]
[1769763669455,1.0370094,2742.4,2741.3,10.71086814]
[1769763669655,0.1024,2742.8,2741.3,10.71086814]
[1769763669822,9.19632017,2743.2,2741.3,10.71086814]
[1769763670022,0.765,2743.3,2741.5,9.50240052]
[1769763670319,0.765,2743.4,2741.5,9.50240052]
[1769763670516,0.99613202,2743.3,2741.7,9.50240052]
[1769763670760,0.99613202,2743.3,2741.9,9.50240052]
[1769763670923,0.99613202,2743.3,2742.0,9.50240052]
[1769763671446,0.99613202,2743.3,2741.3,1.24663017]
[1769763671447,2.0,2743.1,2741.4,0.765]
[1769763671650,11.19632017,2742.9,2741.4,10.26740052]
[1769763671850,1.11963202,2742.8,2741.5,10.65380359]
[1769763672053,1.11963202,2742.8,2741.5,25.15380359]
[1769763672250,1.11963202,2742.8,2741.5,25.15580359]
[1769763672455,0.001,2742.2,2741.5,25.15580359]
[1769763673124,0.001,2742.2,2741.6,9.50240052]
[1769763673329,0.001,2742.2,2741.8,9.50240052]
[1769763677758,0.765,2743.1,2741.8,9.50240052]
[1769763677931,9.29872017,2743.2,2741.8,9.50240052]
[1769763678568,9.29872017,2743.2,2741.7,2.51558036]
[1769763678569,9.19632017,2743.5,2742.0,9.50240052]
[1769763678733,0.1024,2743.3,2742.0,9.50240052]
[1769763679061,0.1024,2743.3,2742.2,9.50240052]
[1769763679568,9.29872017,2743.3,2742.2,9.50240052]
[1769763680861,9.29872017,2743.1,2742.0,14.5]
[1769763681067,9.29872017,2743.1,2741.6,9.50240052]
[1769763681068,9.29872017,2743.1,2741.6,10.26740052]
[1769763681359,0.92987202,2743.0,2741.8,9.50240052]
[1769763682539,0.1024,2743.3,2741.8,9.50240052]
[1769763684860,0.1024,2743.6,2741.8,9.50240052]
[1769763685044,2.0,2743.9,2742.0,9.50240052]
[1769763685246,9.96132017,2744.0,2742.2,9.50240052]
[1769763685550,0.1024,2743.8,2742.4,9.50240052]
[1769763685956,0.1024,2743.8,2742.3,1.02674005]
[1769763685957,0.1024,2743.8,2742.6,9.50240052]
[1769763686485,9.29872017,2743.8,2742.5,14.5]
[1769763686862,9.29872017,2743.8,2742.5,9.50240052]
[1769763687263,9.19632017,2743.6,2742.3,1.79174005]
[1769763687480,10.11595219,2743.5,2742.4,15.62941406]
[1769763687845,10.11595219,2743.5,2742.4,1.12941406]
[1769763687846,9.19632017,2743.4,2742.4,1.12941406]
[1769763688096,9.19632017,2743.4,2742.2,9.50240052]
[1769763688658,9.19632017,2743.4,2742.1,0.765]
[1769763690496,9.19632017,2743.4,2742.1,10.26740052]
[1769763692193,9.96132017,2743.4,2742.1,10.26740052]
[1769763695494,9.19632017,2743.0,2741.5,9.50440052]
[1769763695696,9.19632017,2742.6,2741.5,9.50440052]
[1769763695885,9.96132017,2742.6,2741.5,0.002]
[1769763696194,1.08809522,2743.3,2741.5,0.002]
[1769763696195,0.1024,2742.5,2741.5,0.002]
[1769763696397,0.1024,2742.7,2741.5,9.0326481]
[1769763696696,0.98709904,2742.6,2741.6,9.93391291]
[1769763696873,0.1024,2742.7,2741.6,9.93391291]
[1769763697072,0.1024,2742.7,2741.7,9.0326481]
[1769763697273,0.1034,2743.1,2741.7,9.0326481]
[1769763697578,0.001,2743.1,2741.7,9.0326481]
[1769763698871,0.001,2743.1,2741.9,9.0306481]
[1769763699092,0.001,2743.1,2742.1,9.0306481]
[1769763699387,9.39269827,2744.1,2742.2,9.0306481]
[1769763699586,10.15769827,2744.1,2742.2,9.0306481]
[1769763699826,0.1024,2744.0,2742.4,9.0306481]
[1769763700318,0.38910789,2744.1,2742.4,9.0306481]
[1769763700627,0.38910789,2744.1,2742.6,9.0306481]
[1769763701498,0.38910789,2744.1,2742.7,14.5]
[1769763701698,0.38910789,2744.1,2742.8,9.0306481]
[1769763702418,0.38910789,2744.1,2742.9,14.5]
[1769763702721,0.38910789,2744.1,2743.0,9.0306481]
[1769763702918,0.38910789,2744.1,2743.1,9.93371291]
[1769763704214,3.851,2745.5,2743.1,9.93371291]
[1769763704215,9.00359038,2745.1,2743.2,9.0306481]
[1769763704418,0.18013384,2745.8,2743.2,9.0306481]
[1769763704419,11.00359038,2745.3,2743.2,9.0306481]
[1769763704618,0.1024,2745.2,2743.2,9.0306481]
[1769763705029,2.0,2745.1,2743.2,9.0306481]
[1769763705235,9.00359038,2745.3,2743.4,9.0306481]
[1769763705432,0.765,2745.4,2743.4,9.0306481]
[1769763705733,0.1024,2745.3,2743.4,9.0306481]
[1769763705937,9.00359038,2746.2,2743.6,9.0306481]
[1769763706132,9.00359038,2746.2,2743.8,9.0306481]
[1769763706133,2.0,2746.1,2743.8,9.0306481]
[1769763706345,9.00359038,2746.2,2744.0,9.0306481]
[1769763706346,1.10035904,2746.0,2744.0,9.0306481]
[1769763706547,1.10035904,2746.0,2744.2,9.0306481]
[1769763707421,1.10035904,2746.0,2744.4,9.0306481]
[1769763707628,1.10035904,2746.0,2744.6,9.0306481]
[1769763708042,2.0,2745.9,2744.3,23.5306481]
[1769763708337,9.00359038,2745.8,2744.4,11.46011291]
[1769763708533,3.64140192,2746.2,2744.4,11.46011291]
[1769763708534,0.39502431,2746.5,2744.7,9.0306481]
[1769763710027,0.001,2745.8,2744.7,9.0306481]
[1769763711545,0.39502431,2746.5,2744.4,2.42946481]
[1769763711546,0.39502431,2746.5,2744.8,9.0306481]
[1769763711851,0.39502431,2746.5,2744.9,9.93371291]
[1769763712648,0.39502431,2746.5,2744.9,10.69771291]
[1769763712861,0.39502431,2746.5,2744.9,9.93371291]
[1769763712862,2.0,2746.3,2744.9,9.93371291]
[1769763713043,9.86999038,2746.2,2744.5,9.0306481]
[1769763713370,9.10599038,2746.2,2744.5,9.0306481]
[1769763714037,9.00359038,2746.4,2744.5,9.0306481]
[1769763714246,9.10599038,2746.3,2744.5,9.0306481]
[1769763714417,0.1024,2746.1,2744.7,9.0306481]
[1769763715028,11.00359038,2746.0,2744.6,0.90306481]
[1769763715228,9.00359038,2745.9,2744.4,9.0306481]
[1769763716759,9.00359038,2745.9,2744.1,9.0306481]
[1769763716760,11.00359038,2745.4,2744.1,9.0306481]
[1769763716961,1.10035904,2745.3,2744.1,9.0306481]
[1769763717262,9.00359038,2745.1,2743.7,9.0306481]
[1769763717439,9.10599038,2745.4,2743.7,9.0306481]
[1769763717639,0.1024,2745.0,2743.7,9.0306481]
[1769763718618,0.764,2745.2,2743.7,9.0306481]
[1769763718817,0.1024,2745.3,2743.7,9.0306481]
[1769763719056,0.91059904,2745.2,2743.9,9.0306481]
[1769763719885,2.0,2745.7,2743.9,9.0306481]
[1769763720068,9.99058942,2746.2,2743.8,0.90306481]
[1769763720069,0.1024,2746.0,2744.1,9.0306481]
[1769763720250,9.99058942,2746.2,2744.1,9.0306481]
[1769763720452,9.99058942,2746.2,2744.0,0.764]
[1769763720453,0.98699904,2746.2,2744.3,9.0306481]
[1769763720652,0.31555269,2746.4,2744.5,9.0306481]
[1769763720852,0.0190972,2746.6,2744.6,9.0306481]
[1769763721078,2.0,2746.5,2744.6,9.0306481]
[1769763721279,9.00359038,2746.5,2744.6,9.0306481]
[1769763721479,0.92932403,2746.6,2744.6,9.0306481]
[1769763721480,9.00359038,2746.2,2744.6,9.0306481]
[1769763721662,1.20275904,2746.1,2744.7,0.90306481]
[1769763721860,1.10035904,2746.1,2744.8,9.0306481]
[1769763722098,9.02268758,2746.6,2744.8,9.0306481]
[1769763722099,0.0190972,2746.6,2744.8,9.0306481]
[1769763722789,0.0190972,2746.6,2744.9,0.002]
[1769763722960,0.0190972,2746.6,2745.0,9.0306481]
[1769763723161,0.001,2746.4,2745.0,9.0306481]
[1769763724585,9.10599038,2746.3,2744.9,0.002]
[1769763724783,9.91428942,2746.2,2744.9,0.002]
[1769763724984,9.00359038,2745.8,2744.2,9.0306481]
[1769763725166,0.764,2745.8,2744.2,9.0306481]
[1769763725364,0.8664,2745.9,2744.2,9.0306481]
[1769763726074,9.86999038,2745.9,2744.2,9.0306481]
[1769763726276,9.86999038,2745.9,2744.0,10.18259359]
[1769763726277,2.0,2745.6,2744.0,10.18259359]
[1769763726474,2.0,2745.6,2743.6,9.41859359]
[1769763726475,9.75089137,2745.3,2743.6,9.41859359]
[1769763726667,2.0,2745.2,2743.6,9.41859359]
[1769763727063,9.75089137,2745.1,2743.6,9.41859359]
[1769763727589,2.0,2745.0,2743.6,9.41859359]
[1769763728656,2.0,2745.0,2743.1,0.764]
[1769763728990,2.0,2744.8,2743.2,9.41859359]
[1769763730375,11.64849137,2744.8,2743.2,9.41859359]
[1769763730576,2.0,2744.6,2743.3,1.01825936]
[1769763730777,9.75089137,2744.5,2743.3,1.01825936]
[1769763730956,1.24124914,2744.7,2742.8,9.41859359]
[1769763731160,0.1024,2745.0,2743.0,9.41859359]
[1769763732399,0.1024,2745.1,2743.0,9.41859359]
[1769763733086,2.0,2745.0,2743.0,9.41859359]
[1769763733299,11.75089137,2744.8,2743.0,9.41859359]
[1769763733459,9.75089137,2744.8,2743.0,9.41859359]
[1769763733758,0.97508914,2744.7,2743.1,10.36045295]
[1769763734609,0.91069904,2746.2,2743.1,10.36045295]
[1769763734610,0.1024,2745.5,2743.3,9.41859359]
[1769763734762,0.1024,2745.5,2743.5,9.41859359]
[1769763736089,0.1024,2745.4,2743.5,9.41859359]
[1769763736862,2.0,2745.3,2743.5,9.41859359]
[1769763737496,11.64849137,2745.3,2743.5,9.41859359]
[1769763737696,1.17508914,2745.2,2743.6,10.43685295]
[1769763738203,10.82358051,2745.2,2743.6,10.43685295]
[1769763738393,11.64849137,2744.9,2743.6,1.01825936]
[1769763738571,10.41249137,2744.8,2743.2,9.42059359]
[1769763740195,0.764,2744.7,2743.2,9.42059359]
[1769763741385,10.41249137,2744.8,2743.2,9.42059359]
[1769763741695,1.04124914,2744.7,2743.3,10.45483889]
[1769763743219,1.80524914,2744.7,2743.3,10.45483889]
[1769763744899,1.04124914,2744.7,2743.3,10.45483889]
[1769763745499,0.8664,2745.1,2743.3,10.45483889]
[1769763746105,0.1024,2745.1,2743.3,10.45483889]
[1769763746307,0.8664,2745.1,2743.3,10.45483889]
[1769763746663,0.1024,2745.1,2743.3,10.45483889]
[1769763746965,0.8664,2745.1,2743.3,10.45483889]
[1769763747161,1.05148914,2745.0,2743.5,9.41859359]
[1769763747410,9.64849137,2744.9,2743.2,9.42059359]
[1769763748181,9.64849137,2744.8,2743.2,9.42059359]
[1769763750197,9.64849137,2744.8,2743.4,0.002]
[1769763751771,0.1024,2744.7,2743.4,9.42059359]
[1769763751982,0.97508914,2744.6,2743.4,10.36285295]
[1769763752493,0.1024,2744.8,2743.4,10.36285295]
[1769763752689,0.1024,2744.9,2743.4,10.36285295]
[1769763753872,9.75089137,2744.9,2743.4,10.36285295]
[1769763754378,9.75089137,2744.9,2743.4,0.94425936]
[1769763754579,9.75089137,2744.9,2743.4,0.002]
[1769763754902,9.64849137,2744.7,2743.4,0.002]
[1769763755476,0.1024,2744.9,2743.4,0.002]
[1769763755477,9.64849137,2744.5,2743.4,0.002]
[1769763756895,10.41249137,2744.5,2743.4,0.002]
[1769763758183,10.41249137,2744.5,2743.2,0.002]
[1769763758184,8.93072914,2744.1,2743.2,0.002]
[1769763758386,9.83404205,2744.0,2743.2,0.002]
[1769763759014,9.83404205,2744.0,2743.1,0.002]
[1769763759531,9.83404205,2744.0,2742.4,9.02854792]
[1769763761181,8.93072914,2743.6,2742.0,9.02854792]
[1769763761504,2.0,2743.4,2742.1,0.97925479]
[1769763761712,8.93072914,2743.3,2741.9,0.764]
[1769763762015,8.93072914,2743.3,2741.7,9.03054792]
[1769763762585,8.93072914,2743.1,2741.7,9.03054792]
[1769763762775,8.93072914,2742.5,2741.7,0.002]
[1769763763215,9.69472914,2742.5,2741.7,0.002]
[1769763763433,9.69472914,2742.5,2741.3,0.002]
[1769763763434,8.93072914,2742.3,2741.3,0.002]
[1769763763642,8.93072914,2742.1,2740.4,9.03054792]
[1769763764144,8.93072914,2742.1,2740.5,9.03054792]
[1769763764340,0.90331291,2742.0,2740.6,0.90325479]
[1769763764645,8.93072914,2741.8,2740.6,0.90325479]
[1769763764933,0.764,2741.7,2740.5,9.03054792]
[1769763765738,2.0,2741.9,2740.5,9.03054792]
[1769763765946,0.764,2741.7,2740.5,9.03054792]
[1769763769508,2.1024,2741.9,2740.5,9.03054792]
[1769763769713,0.1024,2741.7,2740.5,9.03054792]
[1769763769913,0.1024,2741.7,2740.5,9.93400271]
[1769763770235,1.66831291,2742.0,2740.5,9.93400271]
[1769763770442,0.1024,2742.5,2740.5,9.93400271]
[1769763770645,2.0,2742.3,2740.5,9.93400271]
[1769763771334,0.765,2742.4,2740.5,9.93400271]
[1769763772063,0.91145366,2742.9,2740.5,9.93400271]
[1769763772064,0.1024,2743.0,2740.5,9.93400271]
[1769763772216,0.1024,2742.6,2740.7,9.02854792]
[1769763772843,0.1024,2742.8,2740.7,9.02854792]
[1769763773918,9.03312914,2742.7,2740.7,9.02854792]
[1769763774836,9.03312914,2742.7,2740.7,9.03054792]
[1769763775053,0.001,2742.1,2740.7,9.03054792]
[1769763775248,0.001,2742.1,2740.9,9.02854792]
[1769763776585,0.001,2742.1,2740.9,9.79354792]
[1769763781736,8.93172914,2742.1,2740.9,0.765]
[1769763781936,8.93172914,2742.1,2740.7,0.002]
[1769763783950,8.93072914,2741.9,2740.7,0.002]
[1769763784146,9.82380205,2741.8,2740.7,0.002]
[1769763784876,8.93072914,2741.6,2740.7,0.002]
[1769763785050,8.93072914,2741.4,2740.5,0.002]
[1769763787081,0.89307291,2741.8,2740.5,0.002]
[1769763787082,0.89307291,2741.8,2740.7,9.39075637]
[1769763787276,0.001,2742.1,2740.7,9.39075637]
[1769763787776,0.765,2743.2,2741.0,9.38875637]
[1769763787942,1.09307291,2743.5,2741.2,9.38875637]
[1769763788148,2.0,2743.3,2741.2,9.38875637]
[1769763788345,2.1024,2743.1,2741.4,9.38875637]
[1769763788678,0.1024,2743.1,2741.4,9.38875637]
[1769763789052,0.1024,2743.1,2741.5,23.88875637]
[1769763790165,0.1024,2743.1,2741.6,9.38875637]
[1769763790547,0.8674,2743.1,2741.6,9.38875637]
[1769763790744,0.19677788,2743.0,2741.8,9.38875637]
[1769763793663,0.19677788,2743.0,2741.9,14.5]
[1769763794150,0.19677788,2743.0,2741.9,23.88875637]
[1769763796073,0.19677788,2743.0,2741.9,14.5]
[1769763796382,9.20056625,2743.0,2741.5,9.38875637]
[1769763796591,0.93029662,2742.9,2741.6,0.93887564]
[1769763796791,0.93029662,2742.9,2741.7,14.5]
[1769763797293,9.00378837,2742.7,2741.3,9.38875637]
[1769763797591,9.00378837,2742.7,2741.1,0.765]
[1769763797592,0.765,2742.8,2741.5,9.38875637]
[1769763797762,0.19677788,2743.0,2741.7,9.38875637]
[1769763797962,2.0,2743.2,2741.7,9.38875637]
[1769763798155,0.1024,2743.1,2741.7,9.38875637]
[1769763798358,0.001,2742.5,2741.7,9.38875637]
[1769763798594,0.001,2742.5,2741.8,14.5]
[1769763798961,0.001,2742.5,2741.8,23.88875637]
[1769763799162,0.001,2742.5,2741.9,2.38887564]
[1769763800787,0.001,2742.5,2741.9,11.77763201]
[1769763801007,0.001,2742.5,2742.0,9.38875637]
[1769763802699,0.001,2742.5,2742.0,23.88875637]
[1769763803593,0.001,2742.5,2741.7,0.765]
[1769763803912,0.001,2742.5,2741.3,10.15375637]
[1769763804089,0.001,2742.5,2741.4,10.40413201]
[1769763804669,0.001,2742.5,2741.5,14.5]
[1769763805701,0.001,2742.5,2741.6,9.38875637]
[1769763806006,0.91129327,2743.4,2741.7,9.38875637]
[1769763806007,0.1024,2743.4,2741.7,9.38875637]
[1769763806200,0.90514888,2743.3,2741.9,9.38875637]
[1769763806509,0.90514888,2743.3,2742.1,9.38875637]
[1769763807697,0.90514888,2743.3,2742.2,14.5]
[1769763808321,0.90514888,2743.3,2742.1,9.38875637]
[1769763808842,0.90514888,2743.3,2742.1,23.88875637]
[1769763809147,0.90514888,2743.3,2742.2,11.77763201]
[1769763810108,0.001,2743.1,2742.2,11.77763201]
[1769763812039,0.001,2743.1,2742.2,9.38875637]
[1769763813323,0.001,2743.1,2742.4,9.38875637]
[1769763813516,9.00378837,2744.1,2742.5,9.38875637]
[1769763813712,9.00378837,2744.1,2742.6,14.5]
[1769763813916,2.0,2744.0,2742.7,9.38875637]
[1769763814117,1.10037884,2743.9,2742.8,2.38887564]
[1769763814296,1.10037884,2743.9,2742.7,9.38875637]
[1769763815218,1.10037884,2743.9,2742.7,23.88875637]
[1769763818027,1.10037884,2743.9,2742.8,9.0737249]
[1769763818953,10.06342666,2744.7,2742.8,9.0737249]
[1769763818954,9.51645315,2744.4,2742.8,9.0737249]
[1769763819115,10.28145315,2744.4,2742.8,9.8387249]
[1769763819300,0.765,2744.4,2742.8,9.8387249]
[1769763819701,0.765,2744.4,2743.0,9.0737249]
[1769763819929,10.28145315,2744.4,2743.0,9.0737249]
[1769763820131,10.54459847,2744.3,2743.0,11.50759739]
[1769763820333,10.54459847,2744.3,2743.1,9.0737249]
[1769763820535,10.54459847,2744.3,2743.1,23.5737249]
[1769763820741,10.54459847,2744.3,2743.2,9.0737249]
[1769763821835,0.001,2744.2,2743.2,9.0737249]
[1769763825867,9.51745315,2744.2,2743.0,9.0737249]
[1769763826160,9.51645315,2743.9,2742.9,0.002]
[1769763826517,0.95174531,2744.1,2742.6,0.002]
[1769763826518,9.51645315,2743.7,2742.6,0.002]
[1769763826725,9.51645315,2743.5,2742.6,0.002]
[1769763826916,1.02804532,2743.4,2742.6,0.002]
[1769763827417,9.51645315,2743.2,2741.9,0.764]
[1769763827642,0.1024,2743.3,2741.9,9.8377249]
[1769763828051,0.764,2743.5,2741.9,9.8377249]
[1769763830050,0.1024,2743.4,2741.9,9.8377249]
[1769763830256,0.1024,2743.4,2742.1,9.0737249]
[1769763830838,9.51645315,2743.9,2742.1,9.0737249]
[1769763831048,0.1024,2743.9,2742.1,9.0737249]
[1769763831243,9.61885315,2743.9,2742.1,9.0737249]
[1769763831934,2.0,2743.8,2742.1,9.0737249]
[1769763832135,10.67833846,2743.7,2742.3,9.0737249]
[1769763832741,0.1024,2743.6,2742.3,9.0737249]
[1769763833146,9.51645315,2743.4,2742.3,9.0737249]
[1769763833351,9.51645315,2743.4,2742.0,9.0737249]